bitfinex/quotes_ETHUSD_20241120
["timestamp","ask_amount","ask_price","bid_price","bid_amount"]
[1732080189335,3.21378,3111.6,3111.3,0.01]
[1732080189493,3.21378,3111.6,3111.4,0.07742674]
[1732080189847,3.21388,3111.5,3111.4,0.07742674]
[1732080190140,0.7937,3111.2,3111.1,0.01]
[1732080190437,4.00789,3111.2,3111.1,0.01]
[1732080190930,3.21429,3111.1,3111.0,18.5996486]
[1732080191490,3.21412,3111.3,3111.2,0.01]
[1732080191832,3.21412,3111.3,3111.1,0.01]
[1732080192036,3.21419,3111.2,3111.1,0.02]
[1732080192609,2.90771628,3112.1,3112.0,5.25638232]
[1732080192852,9.12097628,3112.1,3112.0,5.25638232]
[1732080193526,6.12097628,3112.1,3112.0,5.25638232]
[1732080194426,3.21326,3112.1,3112.0,5.25638232]
[1732080195118,0.1403214,3112.3,3112.1,0.02]
[1732080195317,3.3534714,3112.3,3112.1,0.02]
[1732080195547,3.3534714,3112.3,3112.1,0.01]
[1732080195753,0.1403214,3112.3,3112.1,0.62799823]
[1732080196051,0.1403214,3112.3,3112.1,0.01]
[1732080196256,0.1403214,3112.3,3112.1,0.02]
[1732080196412,0.1403214,3112.3,3112.2,0.8036]
[1732080196762,0.0903214,3112.3,3112.2,0.8036]
[1732080197271,0.0903214,3112.3,3112.2,3.69544]
[1732080197469,0.0903214,3112.3,3112.2,4.88824777]
[1732080198861,0.0903214,3112.3,3112.2,1.99640777]
[1732080199063,0.0903214,3112.3,3112.2,0.01]
[1732080199566,0.0903214,3112.3,3112.1,0.02]
[1732080199919,0.0903214,3112.3,3112.2,2.89184]
[1732080200768,0.0903214,3112.3,3112.1,2.91193]
[1732080200922,0.0903214,3112.3,3112.2,0.89719323]
[1732080201583,3.21256,3112.8,3112.2,0.89719323]
[1732080201584,3.21255,3112.8,3112.5,0.01]
[1732080201859,3.21274,3112.6,3112.5,0.01]
[1732080202230,3.21295,3112.4,3112.3,0.01]
[1732080202434,0.09985865,3113.2,3113.1,0.02]
[1732080202642,0.09985865,3113.2,3113.1,0.09716066]
[1732080203250,0.09985865,3113.2,3113.1,0.02]
[1732080203461,0.09985865,3113.2,3113.1,0.09712396]
[1732080203649,3.21224,3113.1,3112.9,0.01]
[1732080203853,3.21224,3113.1,3113.0,0.07713549]
[1732080204530,3.2124,3113.0,3112.7,0.01]
[1732080204730,3.88653486,3113.1,3112.7,0.02]
[1732080204967,0.09985865,3113.2,3112.7,0.01]
[1732080204968,3.21247,3112.9,3112.7,0.01]
[1732080205270,0.09985865,3113.2,3112.5,0.01]
[1732080205271,3.21274,3112.6,3112.5,0.01]
[1732080205423,0.321274,3112.6,3112.5,0.01]
[1732080205618,3.21274,3112.6,3112.5,0.01]
[1732080206271,0.2186,3113.1,3112.1,0.01]
[1732080206468,0.09985865,3113.2,3111.9,0.01]
[1732080206469,3.21336,3112.0,3111.9,0.01]
[1732080206634,3.21336,3112.0,3111.1,0.01]
[1732080206635,3.21398,3111.4,3111.1,0.01]
[1732080206842,6.12097628,3112.1,3110.9,0.01]
[1732080206843,3.2144,3111.0,3110.9,0.01]
[1732080207062,3.21377,3111.7,3111.3,0.7594]
[1732080207218,3.21384,3111.6,3111.5,0.01]
[1732080207421,3.21388,3111.5,3111.3,0.01]
[1732080207658,0.2186,3111.7,3111.1,0.02]
[1732080207862,3.21378,3111.6,3111.1,0.02]
[1732080208096,3.21416,3111.3,3111.1,0.02]
[1732080208271,3.21403,3111.4,3111.1,0.02]
[1732080208272,3.21419,3111.2,3111.1,0.01]
[1732080208697,0.2186,3111.7,3111.1,0.01]
[1732080208698,3.2139,3111.5,3111.1,0.01]
[1732080208907,3.21378,3111.6,3111.1,0.02]
[1732080209055,0.2186,3111.7,3111.1,0.02]
[1732080209255,3.43227,3111.7,3111.1,0.02]
[1732080209456,3.21379,3111.6,3111.1,0.02]
[1732080209655,3.2139,3111.5,3111.1,0.02]
[1732080210161,3.21392,3111.5,3111.1,0.02]
[1732080210360,3.21395,3111.5,3111.1,0.01]
[1732080210606,0.2186,3111.7,3111.1,0.01]
[1732080210607,3.21398,3111.4,3111.1,0.01]
[1732080210768,3.21388,3111.6,3111.2,0.01]
[1732080211107,0.2186,3111.9,3111.1,0.01]
[1732080211551,3.21398,3111.4,3111.1,0.01]
[1732080211776,3.21409,3111.3,3111.2,0.07481276]
[1732080212360,3.21398,3111.4,3111.2,0.07481276]
[1732080212711,0.2186,3111.9,3111.2,0.07481276]
[1732080213003,3.21409,3111.3,3111.2,0.07481276]
[1732080213415,3.43269,3111.3,3110.9,0.01]
[1732080213573,3.2143,3111.1,3110.9,0.01]
[1732080213757,3.43269,3111.3,3110.6,0.01]
[1732080213758,3.21461,3110.8,3110.6,0.02]
[1732080213960,0.2186,3111.3,3110.6,0.01]
[1732080213961,3.21471,3110.7,3110.6,0.01]
[1732080214157,0.561869,3111.3,3110.6,0.01]
[1732080214158,0.2186,3111.3,3110.6,0.01]
[1732080214385,3.21471,3110.7,3110.6,0.01]
[1732080214789,3.0,3111.7,3110.6,0.02]
[1732080214954,3.21423,3111.2,3110.6,0.02]
[1732080215159,3.21423,3111.2,3110.8,0.01]
[1732080215359,0.2186,3111.3,3110.9,0.01]
[1732080215598,3.43269,3111.3,3110.9,0.01]
[1732080217604,0.2186,3111.6,3111.0,2.90295]
[1732080217770,0.2186,3111.6,3110.7,0.7594]
[1732080217771,3.43206,3112.0,3111.4,2.90255]
[1732080217976,0.2186,3112.0,3111.4,2.91255]
[1732080218315,8.77,3113.5,3111.6,2.89234]
[1732080218316,3.43166,3112.3,3111.6,2.89234]
[1732080218610,3.21285,3112.5,3111.7,2.8923]
[1732080218764,3.21334,3112.1,3111.7,0.07477083]
[1732080218965,3.21342,3112.0,3111.7,0.07477083]
[1732080219160,3.21349,3111.9,3111.7,0.07477083]
[1732080219386,0.2186,3112.0,3111.0,0.02]
[1732080219387,3.556779,3111.8,3111.0,0.02]
[1732080219585,3.21357,3111.8,3111.0,0.02]
[1732080219801,3.21357,3111.8,3111.0,2.91296]
[1732080219802,3.2137,3111.7,3111.0,2.91296]
[1732080219984,0.2186,3112.0,3111.0,0.02]
[1732080220305,3.21365,3111.8,3111.0,0.02]
[1732080220666,0.2186,3112.0,3111.0,0.02]
[1732080220667,3.21387,3111.6,3111.0,0.02]
[1732080221010,3.21406,3111.4,3111.0,0.02]
[1732080221192,3.21384,3111.6,3111.2,0.01]
[1732080221504,3.21384,3111.6,3111.0,0.02]
[1732080221660,3.2139,3111.5,3111.0,0.02]
[1732080221859,3.214,3111.4,3111.0,0.02]
[1732080222056,3.21375,3111.7,3111.0,2.91295]
[1732080222297,0.2186,3112.0,3111.0,0.02]
[1732080222617,3.43204,3112.0,3111.2,0.02]
[1732080222768,3.43199,3112.0,3111.4,2.89256]
[1732080223138,3.43199,3112.0,3111.4,2.90256]
[1732080223513,0.2186,3112.0,3111.4,0.01]
[1732080223721,0.2186,3112.0,3111.4,2.90257]
[1732080223900,3.21348,3111.9,3111.5,0.3193853]
[1732080224104,3.21348,3111.9,3111.4,0.01]
[1732080224331,0.2186,3112.0,3111.4,0.01]
[1732080224528,3.43198,3112.0,3111.4,0.01]
[1732080224900,3.21318,3112.2,3111.5,0.7947]
[1732080225110,3.43163,3112.4,3111.8,0.01]
[1732080225326,0.2186,3112.4,3112.0,0.01]
[1732080225528,3.21307,3112.3,3112.0,0.01]
[1732080225733,0.2186,3112.4,3111.6,0.01]
[1732080225734,3.21295,3112.4,3111.6,0.01]
[1732080225930,3.21346,3112.0,3111.4,0.02]
[1732080226248,3.21346,3112.0,3111.6,0.01]
[1732080228362,3.21346,3112.0,3111.4,0.02]
[1732080228542,3.21364,3111.8,3111.6,0.01]
[1732080229513,3.21364,3111.8,3111.4,0.02]
[1732080229708,3.21368,3111.7,3111.4,0.369743]
[1732080229956,3.21364,3111.8,3111.4,0.01]
[1732080230155,3.21371,3111.7,3111.4,0.01]
[1732080230509,3.2134,3112.0,3111.4,0.01]
[1732080230711,3.21365,3111.8,3111.4,0.01]
[1732080231026,0.2186,3111.9,3111.5,0.07311979]
[1732080231231,3.21305,3112.3,3111.8,0.02]
[1732080231421,3.0,3113.1,3111.6,0.07310825]
[1732080231422,3.21347,3111.9,3111.6,0.07310825]
[1732080231608,0.66438225,3113.0,3111.5,0.7947]
[1732080231609,3.21329,3112.1,3111.5,0.7947]
[1732080231853,3.21337,3112.0,3111.7,0.07310204]
[1732080232075,3.21337,3112.0,3111.5,0.7947]
[1732080232285,3.21347,3111.9,3111.8,0.0730905]
[1732080232451,0.2186,3111.8,3111.4,0.01]
[1732080232650,3.21347,3111.9,3111.8,0.0730905]
[1732080232854,3.21347,3111.9,3111.6,0.01]
[1732080233148,3.21347,3111.9,3111.8,0.07309014]
[1732080233342,3.21347,3111.9,3111.6,0.01]
[1732080233343,3.21347,3111.9,3111.7,0.07310169]
[1732080233538,3.21347,3111.9,3111.8,0.07309014]
[1732080234079,3.21357,3111.8,3111.6,0.01]
[1732080234470,3.21376,3111.7,3111.2,0.378754]
[1732080234669,3.21363,3111.8,3111.2,0.01]
[1732080234874,3.21379,3111.6,3111.2,0.01]
[1732080236351,3.21389,3111.5,3111.2,0.01]
[1732080236762,3.21381,3111.6,3111.1,0.01]
[1732080237081,3.21407,3111.4,3111.1,0.01]
[1732080237278,3.21429,3111.1,3110.7,0.01]
[1732080237469,3.21435,3111.1,3110.8,0.01]
[1732080237663,3.21443,3111.0,3110.7,0.01]
[1732080238388,3.21443,3111.0,3110.8,0.01]
[1732080238680,3.2144,3111.0,3110.8,0.01]
[1732080239456,3.2144,3111.0,3110.7,0.01]
[1732080239890,3.21438,3111.1,3110.7,0.01]
[1732080240252,3.21419,3111.2,3110.7,0.01]
[1732080240447,3.2144,3111.0,3110.7,0.01]
[1732080240654,3.21459,3110.9,3110.6,0.7717]
[1732080240965,3.21461,3110.8,3110.6,0.01]
[1732080241186,3.21471,3110.7,3110.4,0.3452167]
[1732080241485,3.21491,3110.5,3110.4,0.3452167]
[1732080241693,3.21461,3110.8,3110.4,0.3452167]
[1732080241997,3.2144,3111.1,3110.6,0.01]
[1732080242149,3.2144,3111.1,3110.6,0.02]
[1732080242554,3.2145,3111.0,3110.7,0.0732436]
[1732080242783,3.2146,3110.8,3110.7,0.0732436]
[1732080243151,3.21491,3110.5,3110.4,0.3352167]
[1732080243490,3.21491,3110.5,3110.4,0.40849137]
[1732080244258,3.21491,3110.5,3110.4,0.3352167]
[1732080244445,3.21491,3110.5,3110.4,0.40849137]
[1732080245357,3.21475,3110.7,3110.4,0.07327467]
[1732080246064,3.21451,3110.9,3110.4,0.07327467]
[1732080246269,3.21461,3110.8,3110.4,0.07327467]
[1732080246572,3.21471,3110.7,3110.4,0.07327467]
[1732080247289,3.21452,3110.9,3110.4,0.07327467]
[1732080247494,3.21464,3110.8,3110.4,0.07327467]
[1732080247657,3.21477,3110.7,3110.4,0.07327467]
[1732080248211,3.21482,3110.6,3110.4,0.07327467]
[1732080249263,3.21482,3110.6,3110.3,0.01]
[1732080249566,3.21482,3110.6,3110.5,0.07326312]
[1732080249896,3.21482,3110.6,3110.2,0.01]
[1732080249897,3.21491,3110.5,3110.2,0.01]
[1732080250364,3.21482,3110.6,3110.2,0.01]
[1732080250566,3.21503,3110.4,3110.2,0.01]
[1732080250795,3.21482,3110.6,3110.2,0.01]
[1732080251907,3.21464,3110.8,3110.2,0.01]
[1732080252402,3.21472,3110.7,3110.2,0.01]
[1732080252558,0.2186,3111.2,3110.6,0.01]
[1732080252759,3.21419,3111.2,3110.6,0.378591]
[1732080252959,3.21419,3111.2,3110.6,2.90332]
[1732080253179,3.21402,3111.4,3111.0,0.01]
[1732080253407,3.21402,3111.4,3110.9,0.7724]
[1732080253891,3.21409,3111.3,3110.9,0.7724]
[1732080254810,3.21422,3111.2,3110.9,0.7724]
[1732080255417,3.21436,3111.1,3110.6,0.7924]
[1732080255622,3.21443,3111.0,3110.6,0.7724]
[1732080255825,3.21422,3111.2,3110.6,0.7724]
[1732080255826,3.21419,3111.2,3110.6,3.67569]
[1732080255985,6.12128628,3111.8,3110.6,3.67569]
[1732080255986,0.2186,3111.5,3110.7,0.01]
[1732080256192,3.4325,3111.5,3110.8,0.01]
[1732080256409,0.2186,3111.5,3111.1,2.89278]
[1732080256607,11.98261,3112.8,3111.1,2.89278]
[1732080256608,3.21378,3111.6,3111.1,1.062678]
[1732080256825,3.2132,3112.2,3111.1,0.7724]
[1732080256826,3.21336,3112.0,3111.1,0.7724]
[1732080256982,3.2137,3111.7,3111.1,3.6652]
[1732080257185,3.21363,3111.8,3111.2,2.8927]
[1732080257414,3.21347,3111.9,3111.1,0.7724]
[1732080257615,3.21374,3111.7,3111.1,0.7724]
[1732080258022,3.21378,3111.6,3111.1,0.7724]
[1732080258193,3.21374,3111.7,3111.1,0.7724]
[1732080258405,3.21395,3111.5,3111.1,0.7724]
[1732080258604,3.21366,3111.8,3110.9,0.01]
[1732080258605,3.21357,3111.8,3110.9,0.01]
[1732080258807,3.21426,3111.2,3110.8,0.8474]
[1732080259428,3.21411,3111.3,3110.8,0.8474]
[1732080259936,3.21419,3111.2,3110.8,0.8374]
[1732080260708,3.21411,3111.3,3110.8,0.8374]
[1732080261613,3.43262,3111.4,3110.8,3.73049]
[1732080261614,3.21399,3111.4,3110.8,3.73049]
[1732080261842,0.561817,3111.7,3111.1,2.89285]
[1732080262044,3.21367,3111.7,3111.0,2.90289]
[1732080262224,3.21367,3111.7,3111.1,3.72025]
[1732080262420,3.2137,3111.7,3111.1,0.8274]
[1732080262625,3.2137,3111.7,3111.1,3.73026]
[1732080262844,3.2138,3111.6,3111.1,0.8374]
[1732080263043,0.09814136,3113.0,3111.2,0.07324421]
[1732080263366,0.09814136,3113.0,3111.1,0.8374]
[1732080263367,3.21357,3111.8,3111.4,0.8274]
[1732080263886,3.21357,3111.8,3111.5,0.07318388]
[1732080264084,3.2135,3111.9,3111.5,0.07318388]
[1732080264376,3.2137,3111.7,3111.5,0.07318388]
[1732080264890,3.534817,3111.9,3111.2,0.8274]
[1732080265054,3.21357,3111.8,3111.6,0.07317234]
[1732080265394,0.321337,3111.9,3111.2,0.8274]
[1732080265683,3.43197,3112.0,3111.2,3.72011]
[1732080265886,3.21359,3111.8,3111.3,0.07320699]
[1732080266455,3.43197,3112.0,3111.3,2.96586699]
[1732080266771,3.21357,3111.8,3111.3,0.07320699]
[1732080267078,0.343197,3111.9,3111.3,0.07320699]
[1732080267260,3.556677,3111.9,3111.3,2.96581699]
[1732080267459,3.21359,3111.8,3111.3,0.07320699]
[1732080267782,0.343197,3111.9,3111.3,0.07320699]
[1732080268139,3.21359,3111.8,3111.3,0.07320699]
[1732080268593,3.21369,3111.7,3111.3,0.07320699]
[1732080269333,0.343197,3111.9,3111.3,0.07320699]
[1732080269480,3.43201,3112.0,3111.3,0.07320699]
[1732080269481,3.21359,3111.8,3111.3,0.07320699]
[1732080270126,3.21367,3111.7,3111.3,0.07320699]
[1732080270340,3.21359,3111.8,3111.3,0.07320699]
[1732080270618,3.21368,3111.7,3111.3,0.07320699]
[1732080270783,3.2138,3111.6,3111.3,0.07320699]
[1732080271731,3.556789,3111.8,3111.3,0.07320699]
[1732080271887,3.21358,3111.8,3111.3,0.07320699]
[1732080272895,3.21348,3111.9,3111.3,2.96579699]
[1732080273122,3.21348,3111.9,3111.4,2.89257]
[1732080273285,3.21348,3111.9,3111.5,0.07318987]
[1732080273501,3.21371,3111.7,3111.2,0.01785]
[1732080273742,3.21371,3111.7,3111.6,0.07317725]
[1732080273945,3.8907508,3111.7,3111.3,1.607]
[1732080274238,3.21371,3111.7,3111.6,0.07317725]
[1732080274438,3.21371,3111.7,3111.3,1.607]
[1732080274626,3.21371,3111.7,3111.6,0.07319283]
[1732080274944,0.6770408,3111.7,3111.3,1.607]
[1732080275142,0.343208,3111.8,3111.6,0.07319283]
[1732080275306,6.42706,3111.9,3111.3,1.607]
[1732080275647,3.21365,3111.8,3111.4,0.07321593]
[1732080275806,3.878224,3111.8,3111.5,1.6069]
[1732080276037,0.664574,3111.8,3111.6,0.07319283]
[1732080276233,0.2186,3112.0,3111.6,0.07319283]
[1732080276481,3.21349,3111.9,3111.6,0.07319283]
[1732080276778,3.21349,3111.9,3111.6,0.87799283]
[1732080277538,3.21333,3112.1,3111.6,0.87799283]
[1732080277774,3.534795,3112.0,3111.6,0.87799283]
[1732080278076,3.21351,3111.9,3111.6,0.87799283]
[1732080278286,3.534725,3112.0,3111.6,0.87799283]
[1732080278693,3.321335,3112.0,3111.6,0.87799283]
[1732080278982,3.21348,3111.9,3111.6,0.87799283]
[1732080279332,3.21358,3111.8,3111.6,0.87799283]
[1732080281100,3.21367,3111.7,3111.6,0.07319283]
[1732080281392,3.21358,3111.8,3111.6,0.07319283]
[1732080281894,3.60328534,3111.8,3111.6,0.07319283]
[1732080282293,3.21367,3111.7,3111.6,0.07319283]
[1732080282622,3.43227,3111.7,3111.6,0.07319283]
[1732080282912,3.21458,3110.9,3110.4,0.35519923]
[1732080283461,3.21458,3110.9,3110.2,0.02]
[1732080283590,3.21474,3110.7,3110.2,0.02]
[1732080284196,3.215,3110.5,3110.2,0.02]
[1732080284402,3.215,3110.5,3110.2,0.01]
[1732080284572,6.43001,3110.5,3110.2,0.01]
[1732080284771,3.215,3110.5,3110.2,0.01]
[1732080285094,3.215,3110.5,3110.1,0.8004]
[1732080285484,3.21474,3110.7,3110.1,0.8004]
[1732080285485,3.21475,3110.7,3110.2,0.01]
[1732080285812,3.536224,3110.7,3110.2,0.01]
[1732080289533,3.2145,3110.9,3110.2,2.90365]
[1732080289700,3.21461,3110.8,3110.2,2.90365]
[1732080290533,3.21461,3110.8,3110.3,0.07097076]
[1732080290735,3.21461,3110.8,3110.2,2.90365]
[1732080290905,3.21472,3110.7,3110.3,0.07097076]
[1732080291102,3.21462,3110.8,3110.2,2.90365]
[1732080291337,3.21462,3110.8,3110.3,0.07097436]
[1732080291499,3.21472,3110.7,3110.2,2.90365]
[1732080291704,3.21472,3110.7,3110.3,0.07097436]
[1732080291917,3.21462,3110.8,3110.2,2.90365]
[1732080292240,3.21462,3110.8,3110.3,0.07097436]
[1732080292542,3.21473,3110.7,3110.2,0.01]
[1732080292705,3.21462,3110.8,3110.3,0.07097436]
[1732080293050,3.21489,3110.6,3110.2,0.01]
[1732080293212,3.21489,3110.6,3110.4,0.0709628]
[1732080293557,3.21489,3110.6,3110.5,0.07095124]
[1732080293853,3.21489,3110.6,3110.2,0.01]
[1732080294016,3.21489,3110.6,3110.5,0.07095124]
[1732080294323,3.21462,3110.8,3110.5,0.07095124]
[1732080294524,3.21462,3110.8,3110.2,2.90364]
[1732080295117,3.21477,3110.7,3110.3,0.07097436]
[1732080295346,3.21477,3110.7,3110.2,0.01]
[1732080295529,3.21477,3110.7,3110.4,0.07097813]
[1732080295849,3.21477,3110.7,3110.2,0.01]
[1732080296013,3.21459,3110.9,3110.5,0.07096657]
[1732080296213,3.21462,3110.8,3110.5,0.07096657]
[1732080296413,3.21462,3110.8,3110.2,0.01]
[1732080296651,3.21462,3110.8,3110.6,0.07095501]
[1732080296823,3.857541,3110.8,3110.2,0.01]
[1732080297025,3.857541,3110.8,3110.7,0.07094346]
[1732080297246,3.857541,3110.8,3110.2,0.01]
[1732080297451,3.21489,3110.6,3110.1,0.8104]
[1732080297754,3.43349,3110.6,3110.1,0.8104]
[1732080298121,3.21494,3110.5,3110.1,0.8104]
[1732080298461,3.43349,3110.6,3110.1,0.8104]
[1732080300058,3.43349,3110.6,3110.1,0.01]
[1732080300369,3.21464,3110.8,3110.1,2.90379]
[1732080300724,3.21477,3110.7,3110.2,0.8004]
[1732080300851,3.21489,3110.6,3110.2,0.8004]
[1732080301261,3.21489,3110.6,3110.1,0.01]
[1732080301687,0.343324,3110.8,3110.0,0.34526125]
[1732080301876,3.21519,3110.3,3110.0,0.33526125]
[1732080302071,3.43314,3110.9,3110.0,0.33526125]
[1732080302271,3.21512,3110.4,3110.0,0.33526125]
[1732080302479,3.21522,3110.2,3110.0,0.33526125]
[1732080302967,3.21512,3110.4,3110.0,0.33526125]
[1732080303304,3.21512,3110.4,3110.1,0.01]
[1732080303816,3.21512,3110.4,3110.0,0.34526125]
[1732080304164,3.21512,3110.4,3109.8,0.02]
[1732080304165,3.2153,3110.2,3109.8,0.02]
[1732080305163,3.858026,3110.4,3109.8,0.02]
[1732080305358,3.21518,3110.3,3109.8,0.02]
[1732080306131,3.21518,3110.3,3109.8,2.91407]
[1732080306624,3.21518,3110.3,3109.8,0.02]
[1732080306915,3.43355,3110.5,3109.9,0.8004]
[1732080307123,3.43355,3110.5,3110.0,0.01]
[1732080307124,3.21495,3110.5,3110.0,0.01]
[1732080308125,3.85792,3110.5,3110.0,0.01]
[1732080308430,3.85792,3110.5,3109.9,0.8004]
[1732080308431,3.21509,3110.4,3109.9,0.8004]
[1732080308777,3.21509,3110.4,3110.0,0.06865135]
[1732080309199,3.21518,3110.3,3110.0,0.06865135]
[1732080309391,3.21523,3110.2,3110.0,0.06865135]
[1732080309591,0.2186,3110.3,3110.0,0.06865135]
[1732080309854,0.2186,3110.3,3109.8,0.02]
[1732080309855,3.21512,3110.3,3109.8,0.02]
[1732080309980,3.21512,3110.3,3110.1,0.0686513]
[1732080310181,3.21496,3110.5,3109.9,0.7726]
[1732080310381,3.21496,3110.5,3110.2,0.06863974]
[1732080310714,0.321496,3110.4,3110.0,2.90388]
[1732080310919,6.21482,3110.6,3110.3,0.06862992]
[1732080311215,6.21482,3110.6,3110.4,0.06861836]
[1732080311617,6.21482,3110.6,3110.0,2.90388]
[1732080311822,3.21435,3111.1,3110.0,2.90388]
[1732080311823,3.21449,3111.0,3110.5,0.8412068]
[1732080312026,3.21461,3110.8,3110.5,0.7726]
[1732080312185,3.0,3110.9,3110.6,0.06859135]
[1732080312385,3.2146,3110.8,3110.6,0.06859135]
[1732080313718,3.43286,3111.2,3110.6,0.06859135]
[1732080313902,3.214,3111.4,3110.8,0.7726]
[1732080314105,0.34326,3111.3,3110.8,3.66574]
[1732080314326,0.34326,3111.3,3110.9,0.06854586]
[1732080315520,0.34326,3111.3,3110.9,0.07854586]
[1732080316226,3.21425,3111.2,3110.9,0.06854586]
[1732080316426,0.34326,3111.3,3110.9,0.07854586]
[1732080316730,3.55737,3111.3,3110.9,0.07854586]
[1732080316940,3.21411,3111.3,3110.9,0.07854586]
[1732080318434,3.21381,3111.6,3111.0,0.01]
[1732080318835,3.21381,3111.6,3111.1,0.06851332]
[1732080319031,0.343241,3111.5,3111.1,0.06851332]
[1732080319331,3.557191,3111.5,3111.1,0.06851332]
[1732080319706,0.343241,3111.5,3111.1,0.06851332]
[1732080319925,6.43235,3111.7,3111.1,0.06851332]
[1732080320228,3.21381,3111.6,3111.1,0.07851332]
[1732080321337,3.21381,3111.6,3111.2,0.7726]
[1732080321634,3.21381,3111.6,3111.3,0.06849411]
[1732080321841,3.856551,3111.6,3111.3,0.06849411]
[1732080321991,3.21368,3111.7,3111.3,0.06849411]
[1732080322739,3.0,3111.8,3111.4,0.01]
[1732080322890,3.31205865,3113.2,3111.7,0.01]
[1732080322891,4.04350263,3112.5,3111.7,0.01]
[1732080323086,3.43145,3112.5,3111.8,0.84099376]
[1732080323702,0.19455098,3113.2,3112.1,0.7726]
[1732080323703,3.21275,3112.6,3112.1,0.7726]
[1732080323933,3.21275,3112.6,3112.2,0.06834368]
[1732080324290,3.21305,3112.3,3112.2,0.06834368]
[1732080325542,3.21305,3112.3,3111.8,0.7593]
[1732080325702,3.21305,3112.3,3111.9,0.06836361]
[1732080325903,3.21318,3112.2,3111.9,0.06836361]
[1732080326422,3.21288,3112.5,3111.9,0.06836361]
[1732080326732,3.0,3112.8,3112.0,0.01]
[1732080326733,3.0,3112.6,3112.0,0.01]
[1732080326948,3.0,3112.6,3112.1,0.06833858]
[1732080327427,3.0,3112.6,3112.2,0.7593]
[1732080327632,3.21276,3112.6,3112.2,0.7593]
[1732080327939,0.353462,3112.6,3112.3,0.06820865]
[1732080328108,6.21244,3112.9,3112.3,2.89174]
[1732080328305,6.21244,3112.9,3112.4,0.06819711]
[1732080328833,6.21244,3112.9,3112.3,2.89174]
[1732080329016,6.21244,3112.9,3112.5,0.06818557]
[1732080329337,0.621244,3112.8,3112.6,0.06817403]
[1732080329537,3.2125,3112.9,3112.3,2.89174]
[1732080329700,3.854983,3112.9,3112.3,2.89174]
[1732080330044,3.854983,3112.9,3112.4,0.06819711]
[1732080330336,3.2126,3112.8,3112.4,0.06819711]
[1732080330533,3.2126,3112.8,3112.2,3.67113]
[1732080330894,0.642483,3112.9,3112.4,0.01]
[1732080331100,3.21233,3113.0,3112.5,0.06818557]
[1732080331544,3.21245,3112.9,3112.5,0.06818557]
[1732080331713,3.21254,3112.8,3112.5,0.06818557]
[1732080331903,3.21268,3112.7,3112.5,0.06818557]
[1732080332096,3.21254,3112.8,3112.5,0.06818557]
[1732080332730,3.21272,3112.7,3112.5,0.06818557]
[1732080332971,3.21274,3112.6,3112.5,0.06818557]
[1732080333382,3.21237,3113.0,3112.3,2.90168]
[1732080333664,3.21247,3112.9,3112.4,0.06818057]
[1732080334083,3.56543286,3113.0,3112.4,2.95982057]
[1732080334236,3.31206865,3113.2,3112.4,2.95982057]
[1732080334237,0.09985865,3113.2,3112.6,0.01]
[1732080334435,0.09985865,3113.2,3112.6,2.90139]
[1732080334672,0.09985865,3113.2,3113.0,2.89108]
[1732080335241,0.09985865,3113.2,3113.1,0.06811107]
[1732080335944,0.09985865,3113.2,3112.9,0.7693]
[1732080335945,0.09985865,3113.2,3112.9,3.66048]
[1732080336303,0.09985865,3113.2,3113.0,0.0681226]
[1732080336686,0.09985865,3113.2,3113.0,2.9592026]
[1732080336846,0.09985865,3113.2,3113.1,0.01]
[1732080337032,0.09985865,3113.2,3113.1,4.04315026]
[1732080337229,0.09985865,3113.2,3113.1,4.11126133]
[1732080338260,0.09985865,3113.2,3113.1,7.01897761]
[1732080338976,0.09985865,3113.2,3113.1,4.11126133]
[1732080342003,0.09985865,3113.2,3113.1,7.01897761]
[1732080352599,0.09985865,3113.2,3113.1,7.33710407]
[1732080352964,0.09985865,3113.2,3113.1,7.01897761]
[1732080356920,0.09985865,3113.2,3113.1,7.33750689]
[1732080357082,0.09985865,3113.2,3113.1,7.01897761]
[1732080360808,0.09985865,3113.2,3113.1,7.33793234]
[1732080361012,0.09985865,3113.2,3113.1,0.08811107]
[1732080361336,0.09985865,3113.2,3113.1,0.06811107]
[1732080361625,0.09985865,3113.2,3112.9,0.02]
[1732080361786,0.09985865,3113.2,3113.1,0.01]
[1732080361981,0.09985865,3113.2,3113.1,0.07121436]
[1732080362409,0.09985865,3113.2,3113.1,0.08121436]
[1732080363712,0.09985865,3113.2,3113.1,0.07121436]
[1732080363930,0.09985865,3113.2,3113.1,0.06121436]
[1732080364138,0.09985865,3113.2,3113.1,0.02]
[1732080364351,0.09985865,3113.2,3113.1,0.08121436]
[1732080364507,0.09985865,3113.2,3113.1,0.83901436]
[1732080364711,0.09985865,3113.2,3113.1,4.13494121]
[1732080367354,0.09985865,3113.2,3113.1,3.73001436]
[1732080367761,0.09985865,3113.2,3113.1,0.08121436]
[1732080368072,0.09985865,3113.2,3113.1,2.97221436]
[1732080368912,0.09985865,3113.2,3113.1,0.4009757]
[1732080369173,0.09985865,3113.2,3113.1,0.08121436]
[1732080369728,0.09985865,3113.2,3113.1,0.06121436]
[1732080369729,3.66552052,3113.2,3113.1,0.06121436]
[1732080369957,3.66552052,3113.2,3112.9,0.31976134]
[1732080370266,3.66552052,3113.2,3113.0,0.06123068]
[1732080370626,3.66552052,3113.2,3112.8,0.01]
[1732080370826,3.66552052,3113.2,3113.1,0.06121914]
[1732080371058,3.66552052,3113.2,3112.8,0.01]
[1732080371227,3.66552052,3113.2,3113.1,0.06121914]
[1732080371427,3.66552052,3113.2,3112.8,0.01]
[1732080371627,3.21233,3113.0,3112.9,0.06124222]